Workbook

Sheet Sheet1
A1: 2024年生产部5月接收处置记录统计表 | R1: 自产废物
A2: 废物名称 | B2: 危废代码 | C2: 形态 | D2: 上月结存 | E2: 本月接收量 | F2: 处置量及工艺 | J2: 库存量 | K2: 1#库 | L2: 2#库 | M2: 干化池 | N2: 罐区 | O2: 料坑 | R2: 废物名称 | S2: 上月结存 | T2: 本月产生量 | U2: 包数 | V2: 本月处理 | Y2: 库存 | Z2: 备注 | AA2: 存储位置
F3: 固废焚烧 | G3: 废液焚烧 | H3: 清洗大桶 | I3: 污泥干化 | K3: 1#库 | L3: 2#库 | M3: 干化池 | N3: 罐区 | O3: 料坑 | V3: 焚烧处置 | W3: 液体炉 | X3: 拉运
A4: 精馏残渣 | B4: 271-001-02 | C4: 固态 | D4: 0 | E4: =5.1936 -> 5.1936 | J4: =D4+E4-F4-G4-H4-I4 -> 5.1936 | K4: 5.1936 | P4: =K4+L4+M4+N4+O4 -> 5.1936 | R4: 炉渣（回转窑） | S4: 530.002 | T4: 171.15 | U4: 160 | X4: 290.725 | Y4: =S4+T4-V4-X4-W4 -> 410.427
A5: 废有机溶剂 | B5: 271-002-02 | C5: 液态 | D5: 15.321 | J5: 15.321 | L5: 15.321 | P5: 15.321 | R5: 飞灰（回转窑） | S5: 20.395 | T5: 22.36 | U5: 56 | X5: 17.82 | Y5: 24.935
A6: 过滤介质 | B6: 271-003-02 | C6: 固态 | D6: 0 | E6: =3.9172 -> 3.9172 | J6: 3.9172 | K6: 3.9172 | P6: 3.9172 | R6: 飞灰（废液炉） | S6: 1.885 | T6: 3.405 | U6: 9 | Y6: 5.29
A7: 废盐 | B7: 271-005-02 | C7: 固态 | D7: 36.9 | F7: =15.72+11.18 -> 26.9 | J7: 10 | K7: 10 | P7: 10 | R7: 废油渣/泥 | S7: 0 | Y7: 0 | Z7: 精馏切水后剩下的罐底泥
A8: 实验室废液 | B8: 900-002-03 | C8: 液态 | D8: 14.768 | E8: =17.0535 -> 17.0535 | F8: =0.0025 -> 0.0025 | G8: =14.768+5.351 -> 20.119 | J8: 11.7 | L8: 11.7 | P8: 11.7 | R8: 含油污水 | S8: 0 | T8: 2.275 | V8: 2.275 | Y8: 0 | Z8: 蒸汽清洗过程 | AA8: 2#库
A9: 高危化学品 | B9: 900-002-03 | C9: 半固态 | D9: 0 | E9: =0.019 -> 0.019 | F9: =0.019 -> 0.019 | J9: 0 | P9: 0 | R9: 废商标 | S9: 0 | T9: 0.335 | V9: 0.335 | Y9: 0 | Z9: 除商标 | AA9: 2#库
A10: 一般废药品 | B10: 900-002-03 | C10: 固态 | D10: 0 | E10: =0.289 -> 0.289 | F10: =0.289 -> 0.289 | J10: 0 | P10: 0 | R10: 废残液 | S10: 0 | T10: 1.32 | V10: 1.32 | Y10: 0 | Z10: 抽残液 | AA10: 2#库
A11: 磷化铝、杀虫剂 | B11: 900-003-04 | C11: 固态 | D11: 0 | E11: =0.3 -> 0.3 | F11: =0.3 -> 0.3 | J11: 0 | P11: 0 | R11: 废渣 | S11: 0 | T11: 0.89 | V11: 0.89 | Y11: 0 | Z11: 清洗过程 | AA11: 2#库
A12: 废药物、药品 杀虫剂、磷化铝等 | B12: 900-003-04 | C12: 半固态 | D12: 0 | E12: =3.3 -> 3.3 | F12: =3.3 -> 3.3 | J12: 0 | P12: 0 | R12: 漆渣 | S12: 0 | Y12: 0 | Z12: 清洗过程
A13: 废盐 | B13: 263-008-04 | C13: 固态 | D13: 0 | E13: =9.12 -> 9.12 | J13: 9.12 | K13: 9.12 | P13: 9.12 | R13: 污水厂污泥 | S13: 0 | T13: 1.35 | V13: 1.35 | Y13: 0 | Z13: 水处理后产生的污泥 | AA13: 2#库
A14: 蒸馏残液 | B14: 263-008-04 | C14: 半固态 | D14: 13.18 | J14: 13.18 | K14: 13.18 | P14: 13.18 | R14: 废清洗剂 | S14: 0 | Y14: 0 | Z14: 清洗剂清洗过程
A15: 废渣 | B15: 263-009-04 | C15: 固态 | D15: 0 | E15: =23.94+26.02 -> 49.96 | F15: =5.94+3+5 -> 13.94 | J15: 36.02 | K15: 36.02 | P15: 36.02
A16: 污泥 | B16: 263-011-04 | C16: 固态 | D16: 2.48 | E16: =22.58 -> 22.58 | J16: 25.06 | K16: 25.06 | P16: 25.06
A17: 废有机溶剂 | B17: 900-401-06 | C17: 液态 | D17: 0 | J17: 0 | P17: 0
A18: 废有机溶剂及废物 | B18: 900-402-06 | C18: 液态 | D18: 100.345 | E18: =24.85 -> 24.85 | J18: 125.195 | K18: 2.094 | L18: 123.101 | P18: 125.195
A19: 废有机溶剂 | B19: 900-404-06 | C19: 液态 | D19: =13.7699999999999-5 -> 8.77 | E19: =2.42+3.9+4 -> 10.32 | F19: =4+3.9 -> 7.9 | J19: 11.19 | L19: =16.19-5 -> 11.19 | P19: 11.19
A20: 定期更换的活性炭 | B20: 900-405-06 | C20: 固态 | D20: 0 | J20: 0 | P20: 0
A21: 丙烯酸甲酯聚合物 | B21: 900-407-06 | C21: 固态 | D21: 0 | J21: 0 | P21: 0
A22: 废有机溶剂 | B22: 900-407-06 | C22: 液态 | D22: 56.9719 | E22: =28.78 -> 28.78 | F22: =11.1219+10+12 -> 33.1219 | G22: =0.85 -> 0.85 | J22: 51.78 | K22: 23 | L22: 28.78 | P22: 51.78
A23: 油污水 | B23: 251-001-08 | C23: 液态 | D23: 0 | J23: 0 | P23: 0
A24: 废滤芯 | B24: 251-012-08 | C24: 固态 | D24: 0 | J24: 0 | P24: 0
A25: 废溶剂油 | B25: 291-001-08 | C25: 液态 | D25: 1.35 | J25: 1.35 | L25: 1.35 | P25: 1.35
A26: 废溶剂油 | B26: 291-001-08 | C26: 半固态 | D26: 42.52 | E26: =20.42 -> 20.42 | J26: 62.94 | K26: 62.94 | P26: 62.94
A27: 油泥、油脚 | B27: 071-001-08 | C27: 液态 | D27: 0 | J27: 0 | P27: 0
A28: 含油泥浆 | B28: 071-002-08 | C28: 液态 | D28: 242 | E28: =568.7+297+8.8 -> 874.5 | F28: =2 -> 2 | J28: 1114.5 | N28: =1107.7+6.8 -> 1114.5 | P28: 1114.5
A29: 含油岩屑 | B29: 071-002-08 | C29: 半固态 | D29: =2026.471-67.97 -> 1958.501 | E29: =413.952+192.192+88.704+162.624+51.744+66.528+14.784 -> 990.528 | J29: 2949.029 | M29: =623.421-67.97 -> 555.451 | N29: 2393.578 | P29: 2949.029
A30: 废油泥 | B30: 900-200-08 | C30: 半固态 | D30: 4.77 | F30: =4.77 -> 4.77 | J30: 0 | P30: 0
A31: HW08废油 | B31: 900-200-08 | C31: 液态 | D31: 12.4 | E31: =13.88+5.88 -> 19.76 | F31: =4.6 -> 4.6 | J31: 27.56 | K31: 19.76 | N31: 7.8 | P31: 27.56
A32: 油泥 | B32: 900-201-08 | C32: 液态 | D32: 5.466 | G32: =1.84 -> 1.84 | J32: 3.626 | N32: 3.626 | P32: 3.626
A33: 油泥 | B33: 900-201-08 | C33: 半固态 | D33: 0 | J33: 0 | P33: 0
A34: 废润滑油废浮渣 | B34: 900-209-08 | C34: 液态 | D34: 0 | J34: 0 | P34: 0
A35: 水处理浮渣及污泥 | B35: 900-210-08 | C35: 半固态 | D35: 0.64 | E35: =0.42+0.4985+3.15 -> 4.0685 | F35: =1.06+0.4985 -> 1.5585 | J35: 3.15 | L35: 3.15 | P35: 3.15
A36: 废机油、含油废水 | B36: 900-210-08 | C36: 液态 | D36: 185.629 | F36: =1.209 -> 1.209 | J36: 184.42 | N36: 184.42 | P36: 184.42
A37: 废油泥 | B37: 900-210-08 | C37: 固态 | D37: 0 | E37: =34.6 -> 34.6 | J37: 34.6 | L37: 34.6 | P37: 34.6
A38: 废水处理过程产废油、油泥、浮渣 | B38: 900-210-08 | C38: 液态 | D38: =1264-192 -> 1072 | E38: =72+48 -> 120 | J38: 1192 | N38: =1384-192 -> 1192 | P38: 1192
A39: 废白土 | B39: 900-213-08 | C39: 固态 | D39: 0 | J39: 0 | P39: 0
A40: 废机油 | B40: 900-213-08 | C40: 液态 | D40: 1 | J40: 1 | N40: 1 | P40: 1
A41: 废矿物油 | B41: 900-214-08 | C41: 液态 | D41: 47.0546 | E41: =0.94+0.99595+0.2+2+0.28 -> 4.41595 | G41: =0.91 -> 0.91 | J41: 50.56055 | N41: 50.56055 | P41: 50.56055
A42: 废矿物油 | B42: 900-214-08 | C42: 半固态 | D42: 0.56 | J42: 0.56 | L42: 0.56 | P42: 0.56
A43: 废矿物油 | B43: 900-217-08 | C43: 液态 | D43: 12.995 | E43: =0.14685+5.5 -> 5.64685 | J43: 18.64185 | N43: 18.64185 | P43: 18.64185
A44: 废甘油 | B44: 900-217-08 | C44: 半固态 | D44: 0 | J44: 0 | P44: 0
A45: 废液压油 | B45: 900-218-08 | C45: 液态 | D45: 39.2908 | G45: =0.7+3.6+5.66 -> 9.96 | J45: 29.3308 | N45: 29.3308 | P45: 29.3308
A46: 废冷冻机油 | B46: 900-219-08 | C46: 液态 | D46: 3.44 | E46: =5.5 -> 5.5 | J46: 8.94 | N46: 8.94 | P46: 8.94
A47: 废矿物油与含矿物油废物 | B47: 900-220-08 | C47: 液态 | D47: 9.51833 | J47: 9.51833 | N47: 9.51833 | P47: 9.51833
A48: 废油泥 | B48: 900-221-08 | C48: 液态 | D48: 0 | J48: 0 | P48: 0
A49: 废油泥 | B49: 900-221-08 | C49: 半固态 | D49: 0 | J49: 0 | P49: 0
A50: 废矿物油 | B50: 900-249-08 | C50: 液态 | D50: 172.7135 | E50: =0.1+0.74+0.4 -> 1.24 | F50: =9.92+15+4+4 -> 32.92 | G50: =17.53+8.02 -> 25.55 | J50: 115.4835 | N50: =104.8835+10.6 -> 115.4835 | P50: 115.4835
A51: 废矿物油、废油桶 | B51: 900-249-08 | C51: 固态 | D51: 39.7 | E51: =0.411+3.02+0.05+4.5 -> 7.981 | H51: =4.6+3.02+0.05+4.5 -> 12.17 | J51: 35.511 | K51: 1.36 | L51: 34.151 | P51: 35.511
A52: 废矿物油、油泥 | B52: 900-249-08 | C52: 半固态 | D52: 15.14 | E52: =1.28 -> 1.28 | J52: 16.42 | K52: 3.6 | L52: 12.82 | P52: 16.42
A53: 废水、乳化液 | B53: 900-007-09 | C53: 液态 | D53: 9.34 | E53: =0.02 -> 0.02 | G53: =6.54+1.18 -> 7.72 | J53: 1.64 | L53: 1.24 | N53: 0.4 | P53: 1.64
A54: 废乳化液 | B54: 900-006-09 | C54: 液态 | D54: 56.48 | E54: =0.2 -> 0.2 | F54: =1.02+0.2 -> 1.22 | G54: =9.9+7.5 -> 17.4 | J54: 38.06 | L54: 38.06 | P54: 38.06
A55: 砂轮沫 | B55: 900-006-09 | C55: 固态 | D55: 0 | J55: 0 | P55: 0
A56: 废焦油渣 | B56: 252-005-11 | C56: 固态 | D56: 0 | J56: 0 | P56: 0
A57: 煤焦油、釜残 | B57: 900-013-11 | C57: 固态 | D57: 25.2224 | F57: =4+10 -> 14 | J57: 11.2224 | L57: 11.2224 | P57: 11.2224
A58: 煤焦油 | B58: 900-013-11 | C58: 液态 | D58: 25.4 | J58: 25.4 | K58: 21 | N58: 4.4 | P58: 25.4
A59: 釜残 | B59: 900-013-11 | C59: 半固态 | D59: 225.037 | E59: =30.72+29.74+29.48+51.1 -> 141.04 | F59: =11.377+14+6+24.78+10+16+5+16.4 -> 103.557 | J59: 262.52 | K59: 262.52 | P59: 262.52
A60: 煤焦油 | B60: 451-003-11 | C60: 半固态 | D60: 0 | J60: 0 | P60: 0
A61: 煤焦油 | B61: 451-003-11 | C61: 液态 | D61: 99.6 | J61: 99.6 | L61: 5.8 | N61: 93.8 | P61: 99.6
A62: 焦油渣 | B62: 451-003-11 | C62: 固态 | D62: 0 | J62: 0 | P62: 0
A63: 焦油渣 | B63: 451-001-11 | C63: 固态 | D63: 0 | J63: 0 | P63: 0
A64: 漆渣 | B64: 900-250-12 | C64: 固态 | D64: 0 | J64: 0 | P64: 0
A65: 漆渣 | B65: 900-251-12 | C65: 半固态 | D65: 0 | E65: =26.454 -> 26.454 | F65: =12.08 -> 12.08 | J65: 14.374 | K65: 14.374 | P65: 14.374
A66: 废彩涂液 | B66: 900-252-12 | C66: 液态 | D66: 46.32 | J66: 46.32 | K66: 21.92 | L66: 24.4 | P66: 46.32
A67: 废漆渣 | B67: 900-252-12 | C67: 固态 | D67: 123.2 | E67: =31.36+23.1+8.37+1+1.48 -> 65.31 | F67: =8.02+15.53+16.66+13+13.96 -> 67.17 | J67: 121.34 | K67: 75.14 | L67: 46.2 | P67: 121.34
A68: 漆渣 | B68: 900-252-12 | C68: 半固态 | D68: 5.82 | E68: =0.2 -> 0.2 | F68: =0.2 -> 0.2 | J68: =D68+E68-F68-G68-H68-I68 -> 5.82 | L68: 5.82 | P68: =K68+L68+M68+N68+O68 -> 5.82
A69: 油墨渣子、油漆 | B69: 900-299-12 | C69: 半固态 | D69: 0 | E69: =7.1 -> 7.1 | F69: =7.1 -> 7.1 | J69: 0 | P69: 0
A70: 硒鼓墨盒 | B70: 900-299-12 | C70: 固态 | D70: 0 | J70: 0 | P70: 0
A71: 油漆渣 | B71: 900-299-12 | C71: 液态 | D71: 2.32 | E71: =4.68 -> 4.68 | F71: =4.68 -> 4.68 | J71: 2.32 | K71: 2.32 | P71: 2.32
A72: 废油墨 | B72: 264-011-12 | C72: 液态 | D72: 0 | J72: 0 | P72: 0
A73: 油墨渣 | B73: 264-011-12 | C73: 固态 | D73: 0 | J73: 0 | P73: 0
A74: 废水处理污泥 | B74: 264-012-12 | C74: 固态 | D74: 8 | J74: 8 | K74: 8 | P74: 8
A75: 废漆渣稀释剂混合物 | B75: 264-013-12 | C75: 液态 | D75: 0 | J75: 0 | P75: 0
A76: 发泡废料，废胶水 | B76: 900-014-13 | C76: 半固态 | D76: 0.166 | E76: =0.68+0.01 -> 0.69 | F76: =0.68+0.01 -> 0.69 | J76: 0.166 | K76: 0.166 | P76: 0.166
A77: 废胶水 | B77: 900-014-13 | C77: 液态 | D77: 0 | J77: 0 | P77: 0
A78: 发泡废料，废胶水 | B78: 900-014-13 | C78: 固态 | D78: 0 | E78: =3.28 -> 3.28 | J78: 3.28 | K78: 3.28 | P78: 3.28
A79: 废树脂 | B79: 900-015-13 | C79: 固态 | D79: 0 | J79: 0 | P79: 0
A80: 废树脂 | B80: 900-015-13 | C80: 半固态 | D80: 0 | J80: 0 | P80: 0
A81: 有机树脂废物 | B81: 900-016-13 | C81: 半固态 | D81: 10.07 | J81: 10.07 | K81: 6.5 | L81: 3.57 | P81: 10.07
A82: 捞胶（胶渣、填埋料） | B82: 265-101-13 | C82: 固态 | D82: 0 | E82: =31.14 -> 31.14 | J82: 31.14 | K82: 31.14 | P82: 31.14
A83: 不合格有机树脂 | B83: 265-101-13 | C83: 半固态 | D83: 0 | J83: 0 | P83: 0
A84: 含盐废水 | B84: 265-103-13 | C84: 液态 | D84: 9.42 | J84: 9.42 | K84: 9.42 | P84: 9.42
A85: 釜残与滤渣 | B85: 265-103-13 | C85: 半固态 | D85: 0 | J85: 0 | P85: 0
A86: 产品水解物、氯化镁盐 | B86: 265-103-13 | C86: 固态 | D86: 0 | J86: 0 | P86: 0
A87: 污泥 | B87: 265-104-13 | C87: 半固态 | D87: 0 | J87: 0 | P87: 0
A88: 污水处理站污泥 | B88: 265-104-13 | C88: 固态 | D88: 0 | E88: =9.012 -> 9.012 | F88: =9.012 -> 9.012 | J88: 0 | P88: 0
A89: 印刷版 | B89: 231-002-16 | C89: 固态 | D89: 0 | J89: 0 | P89: 0
A90: 废显影液 | B90: 900-019-16 | C90: 液态 | D90: 0 | J90: 0 | P90: 0
A91: 废显影液 | B91: 398-001-16 | C91: 液态 | D91: 0 | J91: 0 | P91: 0
A92: 助镀再生废渣 | B92: 336-051-17 | C92: 固态 | D92: 0 | E92: =12.56 -> 12.56 | F92: =12.56 -> 12.56 | J92: 0 | P92: 0
A93: 含铬污泥 | B93: 336-060-17 | C93: 固态 | D93: 0 | J93: 0 | P93: 0
A94: 镀铜溶液 | B94: 336-062-17 | C94: 液态 | D94: 11.52 | E94: =9.54 -> 9.54 | J94: 21.06 | L94: 9.54 | N94: 11.52 | P94: 21.06
A95: 含铜污泥 | B95: 336-062-17 | C95: 固态 | D95: 0 | J95: 0 | P95: 0
A96: 污泥 | B96: 336-053-17 | C96: 固态 | D96: 0 | J96: 0 | P96: 0
A97: 电镀污泥 | B97: 336-063-17 | C97: 半固态 | D97: 0 | J97: 0 | P97: 0
A98: 电镀污泥 | B98: 336-063-17 | C98: 固态 | D98: 0 | J98: 0 | P98: 0
A99: 废槽渣 | B99: 336-064-17 | C99: 固态 | D99: 16.92 | J99: 16.92 | L99: 16.92 | P99: 16.92
A100: 金属表面处理污泥 | B100: 336-064-17 | C100: 半固态 | D100: 3.96 | F100: =1.54 -> 1.54 | J100: 2.42 | L100: 2.42 | P100: 2.42
A101: 金属表面处理污泥 | B101: 336-064-17 | C101: 液态 | D101: 4.23 | J101: 4.23 | L101: 4.23 | P101: 4.23
A102: 污泥 | B102: 336-069-17 | C102: 半固态 | D102: 0 | J102: 0 | P102: 0
B103: 336-069-17 | C103: 液态 | D103: 0 | J103: 0 | P103: 0
A104: 污泥 | B104: 336-069-17 | C104: 固态 | D104: 0 | J104: 0 | P104: 0
A105: 废UV灯管 | B105: 900-023-29 | C105: 固态 | D105: 0 | J105: 0 | P105: 0
A106: 废碱液 | B106: 251-015-35 | C106: 液态 | D106: 0 | E106: =13.22 -> 13.22 | J106: 13.22 | L106: 13.22 | P106: 13.22
A107: 片碱袋 | B107: 900-399-35 | C107: 固态 | D107: 0 | J107: 0 | P107: 0
A108: 清洁剂 | B108: 900-399-35 | C108: 液态 | D108: 37.02 | E108: =0.1 -> 0.1 | G108: =0.1 -> 0.1 | J108: 37.02 | L108: 37.02 | P108: 37.02
A109: 废硫氢化钠残渣 | B109: 900-399-35 | C109: 半固态 | D109: 10 | F109: =10 -> 10 | J109: 0 | P109: 0
A110: 废碱液 | B110: 900-352-35 | C110: 液态 | D110: 104.14 | J110: 104.14 | K110: 48.08 | L110: 56.06 | P110: 104.14
A111: 废碱液 | B111: 900-354-35 | C111: 液态 | D111: 0.9 | J111: 0.9 | L111: 0.9 | P111: 0.9
A112: 含酚废水 | B112: 261-070-39 | C112: 液态 | D112: 128.1 | G112: =22.44+18.1+13.72 -> 54.26 | J112: 73.84 | N112: 73.84 | P112: 73.84
A113: 废活性炭 | B113: 261-071-39 | C113: 固态 | D113: 0 | J113: 0 | P113: 0
A114: 污泥 | B114: 261-084-45 | C114: 固态 | D114: 3.44 | J114: 3.44 | K114: =3.44 -> 3.44 | P114: 3.44
A115: 含油废物 | B115: 900-041-49 | C115: 固态 | D115: 1668.8601 | E115: =153+102.511+52.62+51.56+31.64685+38.91+5.82+31.238+10.197+4.892+120.164+28.425+43.353+3.16+90+37.9889+6.644 -> 812.12975 | F115: =129+150.7161+122.041+151.50685+79.35+105.95+143.736+101.64+44.8159 -> 1028.75585 | H115: =4.114+3.7+2+4.45+4.29+12.326+3.16+6.46 -> 40.5 | J115: 1411.734 | K115: =1017.61-365 -> 652.61 | L115: 394.124 | O115: 365 | P115: 1411.734
A116: 防腐剂 | B116: 900-041-49 | C116: 液态 | D116: 0 | J116: 0 | P116: 0
A117: 废酸碱袋 | B117: 900-042-49 | C117: 固态 | D117: 0 | E117: =0.545 -> 0.545 | F117: =0.545 -> 0.545 | J117: 0 | P117: 0
A118: 污泥 | B118: 772-006-49 | C118: 固态 | D118: 27.56 | E118: =34.34 -> 34.34 | F118: =21+6.56 -> 27.56 | J118: 34.34 | L118: 34.34 | P118: 34.34
A119: 废活性炭 | B119: 900-039-49 | C119: 固态 | D119: 6.98 | E119: =0.428+4.78+1.05+6.04+0.26+8.76+0.34 -> 21.658 | F119: =0.26+7.77+4.78+0.26 -> 13.07 | J119: 15.568 | L119: 15.568 | P119: 15.568
A120: 废水污泥 | B120: 900-046-49 | C120: 固态 | D120: 4.2 | J120: 4.2 | K120: 4.2 | P120: 4.2
A121: 污泥 | B121: 900-046-49 | C121: 半固态 | D121: 0 | J121: 0 | P121: 0
A122: 过期化学药品 | B122: 900-047-49 | C122: 固态 | D122: 0 | E122: =0.289+1.207+0.7 -> 2.196 | F122: =1.207 -> 1.207 | J122: 0.989 | L122: 0.989 | P122: 0.989
A123: 乙腈、异丙酮、废液 | B123: 900-047-49 | C123: 液态 | D123: 10.9443 | E123: =2.5+0.175+8.7135+2.205+6.08+3.841+8.5448+5.78 -> 37.8393 | F123: =8.134+3.082 -> 11.216 | G123: =2.7603+0.175+12.6775 -> 15.6128 | J123: 21.9548 | L123: 21.9548 | P123: 21.9548
A124: 防护服 | B124: 900-999-49 | C124: 固态 | D124: 0 | J124: 0 | P124: 0
A125: 过期面膜原料、残液 | B125: 900-999-49 | C125: 液态 | D125: 8.996 | E125: =14.76+1.804 -> 16.564 | G125: =7+7+7.76 -> 21.76 | J125: 3.8 | K125: 1.996 | L125: 1.804 | P125: 3.8
A126: 废催化剂 | B126: 261-152-50 | C126: 固态 | D126: 0 | J126: 0 | P126: 0
A127: 小计： | D127: =SUM(D4:D126) -> 6809.58993 | E127: 3515.44065 | F127: 1458.99275 | G127: 176.0818 | H127: 52.67 | I127: 0 | J127: 8637.28603 | K127: =SUM(K4:K126) -> 1381.3508 | L127: 1022.1252 | M127: 555.451 | N127: 5313.35903 | O127: 365 | P127: 8637.28603
A128: 合计： | F128: =F127+G127+H127+I127 -> 1687.74455
